bitfinex/quotes_SOLUSD_20251013
["timestamp","ask_amount","ask_price","bid_price","bid_amount"]
[1760366091142,0.11176128,194.77,194.68,17.97798541]
[1760366091432,0.11176128,194.77,194.71,8.92709634]
[1760366091808,0.11176128,194.77,194.73,8.92709634]
[1760366092007,0.11176128,194.77,194.74,8.92709634]
[1760366092210,0.11176128,194.77,194.75,8.92709634]
[1760366092417,0.11176128,194.77,194.76,8.92709634]
[1760366092627,0.11176128,194.77,194.75,8.92709634]
[1760366092803,0.11176128,194.77,194.76,5.13452454]
[1760366093205,0.11176128,194.77,194.76,8.92709634]
[1760366093512,0.11176128,194.77,194.73,20.8]
[1760366093722,0.11176128,194.77,194.73,34.86229871]
[1760366094023,0.11176128,194.77,194.72,5.13555187]
[1760366094196,0.11176128,194.77,194.68,16.01310968]
[1760366094402,8.92709634,194.76,194.68,5.13663447]
[1760366094636,8.92709634,194.69,194.61,8.92709634]
[1760366094807,8.92709634,194.68,194.62,5.13821806]
[1760366095004,8.92709634,194.7,194.64,8.92709634]
[1760366095204,9.64709634,194.71,194.64,8.92709634]
[1760366095406,5.13460503,194.76,194.65,20.8]
[1760366095407,8.92709634,194.74,194.65,20.8]
[1760366095617,0.72,194.75,194.65,20.8]
[1760366095618,8.92709634,194.73,194.66,8.92709634]
[1760366095916,8.92709634,194.72,194.65,29.72709634]
[1760366096117,20.8,194.76,194.67,8.92709634]
[1760366096430,10.87647521,194.74,194.64,8.92709634]
[1760366096636,0.72,194.73,194.65,8.92709634]
[1760366096821,0.72,194.73,194.66,8.92709634]
[1760366097021,9.64709634,194.73,194.66,8.92709634]
[1760366097225,8.92709634,194.72,194.66,8.92709634]
[1760366097429,8.92709634,194.75,194.68,8.92709634]
[1760366097631,8.92709634,194.74,194.67,8.92709634]
[1760366098147,8.92709634,194.7,194.64,20.8]
[1760366098349,8.92709634,194.72,194.65,8.92709634]
[1760366098531,0.72,194.73,194.68,8.92709634]
[1760366098719,9.64709634,194.73,194.66,5.13716223]
[1760366099045,9.64709634,194.73,194.66,14.06425857]
[1760366099046,8.92709634,194.72,194.66,14.06425857]
[1760366099225,8.92709634,194.7,194.65,5.13740322]
[1760366099416,9.63923629,194.69,194.63,8.91923629]
[1760366099616,9.63923629,194.69,194.62,14.05742494]
[1760366099821,9.63923629,194.69,194.62,5.13818865]
[1760366100045,0.72,194.69,194.62,5.13818865]
[1760366100226,0.09733319,194.64,194.62,25.93818865]
[1760366100430,0.09733319,194.64,194.63,8.91923629]
[1760366100637,0.10834115,194.65,194.64,29.71923629]
[1760366100840,0.10834115,194.65,194.64,20.8]
[1760366101044,0.10834115,194.65,194.64,34.85692638]
[1760366101251,0.10834115,194.65,194.56,25.6985522]
[1760366101451,0.10834115,194.65,194.64,8.91923629]
[1760366101751,0.11025622,194.67,194.65,10.87647521]
[1760366101927,0.11025622,194.67,194.66,29.5957115]
[1760366102128,0.11025622,194.67,194.66,19.7957115]
[1760366102435,0.11025622,194.67,194.66,8.91923629]
[1760366102940,0.11025622,194.67,194.66,24.93287373]
[1760366103145,0.09914595,194.68,194.67,10.87647521]
[1760366103342,0.11180125,194.69,194.67,19.7957115]
[1760366103527,0.11180125,194.69,194.68,19.7957115]
[1760366103841,1e-08,194.69,194.68,19.7957115]
[1760366104145,0.2,194.88,194.72,10.87647521]
[1760366104342,0.2,194.88,194.82,8.91923629]
[1760366104555,0.2,194.88,194.82,19.7957115]
[1760366104723,0.2,194.88,194.86,8.91923629]
[1760366104927,0.2,194.88,194.86,24.92760106]
[1760366105248,0.1,194.89,194.87,10.87647521]
[1760366105439,0.1,194.89,194.88,8.91923629]
[1760366105636,0.1,194.89,194.88,39.51923629]
[1760366105833,0.1,194.89,194.88,30.6]
[1760366106029,0.1,194.89,194.88,20.8]
[1760366106246,0.1,194.89,194.74,8.91923629]
[1760366106247,0.82,194.89,194.74,8.91923629]
[1760366106551,0.1,194.89,194.88,8.91923629]
[1760366107461,0.82,194.89,194.84,20.8]
[1760366107640,0.1,194.89,194.84,8.91923629]
[1760366107956,0.82,194.89,194.85,8.91923629]
[1760366108126,0.1,194.89,194.84,29.71923629]
[1760366108328,0.1,194.89,194.81,9.78]
[1760366108329,0.72,194.88,194.83,8.91923629]
[1760366108523,8.91923629,194.86,194.78,5.13399733]
[1760366108729,9.63923629,194.85,194.78,5.13399733]
[1760366108962,0.82,194.89,194.83,8.91923629]
[1760366109171,0.82,194.89,194.85,8.91923629]
[1760366109325,0.1,194.89,194.88,8.91923629]
[1760366109760,0.1,194.89,194.88,19.7957115]
[1760366110131,0.1,194.95,194.92,20.8]
[1760366110333,0.1,194.95,194.94,8.91923629]
[1760366110554,1e-08,194.95,194.94,19.7957115]
[1760366110764,1e-08,194.97,194.94,44.82646926]
[1760366111068,1e-08,194.97,194.96,24.92496878]
[1760366111764,1e-08,194.97,194.96,5.12925728]
[1760366111931,1e-08,194.97,194.96,50.3757115]
[1760366112260,1e-08,194.97,194.96,19.7957115]
[1760366112432,1e-08,194.97,194.96,20.65647521]
[1760366112634,1e-08,194.97,194.96,19.7957115]
[1760366112840,1e-08,194.97,194.96,29.5757115]
[1760366113146,0.71,195.1,195.0,20.8]
[1760366113344,0.71,195.09,195.03,5.88645986]
[1760366113533,0.71,195.08,195.02,5.88645986]
[1760366113734,0.71,195.08,195.04,5.88645986]
[1760366113958,2.87605099,195.12,195.07,5.88645986]
[1760366114258,0.2,195.12,195.11,5.88645986]
[1760366114853,2.67529894,195.2,195.15,20.8]
[1760366115057,0.91,195.26,195.19,5.88645986]
[1760366115237,0.71,195.25,195.15,20.8]
[1760366115429,5.88645986,195.22,195.11,17.93859873]
[1760366115636,6.59645986,195.22,195.15,5.88645986]
[1760366115857,0.71,195.21,195.13,5.88645986]
[1760366116026,2.67409818,195.25,195.0,25.88645985]
[1760366116027,5.88645986,195.18,195.07,12.81529796]
[1760366116230,6.59645986,195.17,195.1,5.88645986]
[1760366116431,0.71,195.16,195.1,5.88645986]
[1760366116659,6.59645986,195.16,195.1,5.88645986]
[1760366117040,20.8,195.24,195.1,20.8]
[1760366117358,0.71,195.23,195.16,5.88645986]
[1760366117536,5.88645986,195.18,195.17,9.78]
[1760366117866,0.71,195.18,195.13,5.88645986]
[1760366118063,6.59645986,195.21,195.15,5.88645986]
[1760366118229,0.71,195.21,195.1,20.8]
[1760366118433,2.67409818,195.25,195.16,5.88645986]
[1760366118637,0.71,195.24,195.19,5.88645986]
[1760366118848,0.71,195.24,195.2,5.88645986]
[1760366119069,0.2,195.26,195.21,9.78]
[1760366119275,0.2,195.26,195.17,25.92367318]
[1760366119477,0.2,195.26,195.25,20.8]
[1760366119764,0.2,195.26,195.09,19.99999999]
[1760366119956,0.2,195.26,195.2,5.88645986]
[1760366120153,0.2,195.26,195.19,20.8]
[1760366121058,0.2,195.26,195.2,9.8]
[1760366121259,0.2,195.26,195.23,5.88645986]
[1760366121566,0.2,195.26,195.23,20.8]
[1760366121735,0.2,195.26,195.08,5.52]
[1760366121736,0.2,195.26,195.1,19.99999999]
[1760366121937,6.79645986,195.26,195.19,26.68645986]
[1760366122232,5.88645986,195.24,195.17,5.88645986]
[1760366122573,0.2,195.26,195.23,5.88645986]
[1760366122748,0.2,195.26,195.25,5.88645986]
[1760366122935,0.2,195.26,195.25,15.66645986]
[1760366123458,0.2,195.26,195.24,20.8]
[1760366123663,0.2,195.26,195.25,15.66645986]
[1760366123962,0.2,195.26,195.25,5.88645986]
[1760366124468,0.2,195.26,195.24,20.8]
[1760366124771,0.2,195.26,195.25,9.78]
[1760366125141,0.2,195.26,195.18,5.1234696]
[1760366125142,0.2,195.26,195.21,20.8]
[1760366125341,0.91,195.26,195.09,25.62809607]
[1760366125552,0.2,195.26,195.22,5.88645986]
[1760366125736,0.2,195.26,195.19,20.8]
[1760366125937,0.2,195.26,195.25,5.88645986]
[1760366126539,0.2,195.26,195.25,15.66645986]
[1760366127237,0.2,195.26,195.16,19.99999999]
[1760366127238,0.2,195.26,195.22,10.87647521]
[1760366127451,0.71,195.25,195.22,20.8]
[1760366127650,0.71,195.24,195.14,5.12452598]
[1760366127850,0.2,195.26,195.23,5.88645986]
[1760366128050,0.2,195.26,195.25,16.76293507]
[1760366128464,0.2,195.26,195.16,19.99999999]
[1760366128673,0.2,195.26,195.14,43.55847083]
[1760366128674,0.2,195.26,195.25,26.68645986]
[1760366128966,0.2,195.26,195.25,37.15877782]
[1760366129153,0.2,195.26,195.25,21.16066369]
[1760366129362,0.2,195.26,195.25,51.74066369]
[1760366129666,0.2,195.26,195.25,41.96066369]
[1760366129862,0.2,195.26,195.24,15.66645986]
[1760366130061,0.2,195.26,195.23,5.88645986]
[1760366130267,0.91,195.26,195.22,5.88645986]
[1760366130570,0.2,195.26,195.16,5.12400081]
[1760366130761,0.71,195.25,195.22,5.88645986]
[1760366131070,0.2,195.26,195.24,5.88645986]
[1760366131366,0.2,195.3,195.28,20.8]
[1760366131548,0.2,195.36,195.24,5.88645986]
[1760366131549,0.2,195.36,195.35,20.8]
[1760366131944,0.2,195.36,195.35,47.34293507]
[1760366132167,0.2,195.36,195.35,37.56293507]
[1760366132364,0.2,195.36,195.27,19.99999999]
[1760366132541,0.2,195.36,195.35,5.88645986]
[1760366132883,0.2,195.36,195.28,10.87647521]
[1760366133167,11.20526611,195.36,195.29,9.78]
[1760366133463,0.71,195.35,195.3,5.88645986]
[1760366133667,0.71,195.34,195.3,5.88645986]
[1760366133852,0.71,195.33,195.27,5.88645986]
[1760366134053,18.11569404,195.36,195.14,10.87647521]
[1760366134054,5.88645986,195.3,195.14,10.87647521]
[1760366134267,0.71,195.32,195.14,10.87647521]
[1760366134268,0.71,195.29,195.15,22.59028173]
[1760366134581,0.71,195.29,195.23,5.88645986]
[1760366134901,5.88645986,195.24,195.06,19.99999999]
[1760366135065,5.88645986,195.24,195.0,5.88645986]
[1760366135066,18.6375726,195.23,195.11,5.88645986]
[1760366135263,5.88645986,195.17,195.0,5.88645986]
[1760366135464,6.59645986,195.16,195.1,5.88645986]
[1760366135766,6.59645986,195.16,195.0,5.88645986]
[1760366135979,5.88645986,195.15,195.09,5.88645986]
[1760366136283,6.59645986,195.16,195.09,5.88645986]
[1760366136576,5.88645986,195.14,195.06,20.8]
[1760366136776,0.71,195.13,195.08,5.88645986]
[1760366136978,11.01177378,195.11,194.95,12.82380097]
[1760366137180,5.88645986,195.09,195.02,5.88645986]
[1760366137477,0.71,195.08,195.02,5.88645986]
[1760366137871,5.88645986,195.05,194.99,5.88645986]
[1760366138057,0.71,195.07,195.0,5.88645986]
[1760366138265,5.88645986,195.04,194.9,5.13083632]
[1760366138459,0.71,195.03,194.98,5.88645986]
[1760366138658,0.71,195.02,194.98,5.88645986]
[1760366138872,0.71,195.06,195.0,5.88645986]
[1760366139082,0.71,195.06,195.03,5.88645986]
[1760366139261,0.71,195.06,194.95,10.87647521]
[1760366139465,0.71,195.11,195.05,5.88645986]
[1760366139670,0.71,195.11,195.06,5.88645986]
[1760366139956,20.8,195.16,195.0,5.88645986]
[1760366139957,5.83426338,195.15,195.09,5.88645986]
[1760366140171,0.09565548,195.07,195.03,9.78]
[1760366140360,0.71,195.06,194.99,20.8]
[1760366140560,0.71,195.06,195.01,5.88645986]
[1760366140754,0.71,195.05,194.98,9.78]
[1760366140972,5.83714838,195.05,195.0,5.88645986]
[1760366141173,0.71,195.04,194.99,5.88645986]
[1760366141478,6.59645986,195.03,194.97,5.88645986]
[1760366141681,0.71,195.03,194.98,5.88645986]
[1760366141876,0.71,195.02,194.99,5.88645986]
[1760366142092,0.71,195.06,195.01,5.88645986]
[1760366142505,0.09565548,195.07,195.03,5.88645986]
[1760366142668,0.09565548,195.07,195.04,5.88645986]
[1760366142870,0.09565548,195.07,195.06,5.88645986]
[1760366143393,11.78858284,195.07,194.93,20.8]
[1760366143599,11.78858284,195.07,194.99,5.88645986]
[1760366143600,5.88645986,195.06,194.99,5.88645986]
[1760366143808,5.22212298,195.07,194.97,20.8]
[1760366143809,5.88645986,195.04,194.98,5.88645986]
[1760366143963,5.88645986,195.03,194.97,5.88645986]
[1760366144163,0.09565548,195.07,195.02,5.88645986]
[1760366144364,0.77565548,195.07,195.04,5.88645986]
[1760366144564,0.68,195.06,195.0,20.8]
[1760366144792,0.09565548,195.07,195.03,5.88645986]
[1760366144995,0.09565548,195.07,195.04,5.88645986]
[1760366145172,0.09565548,195.07,195.01,0.5]
[1760366145173,0.09565548,195.07,195.03,5.88645986]
[1760366145367,0.77565548,195.07,195.03,5.88645986]
[1760366145585,0.09565548,195.07,195.06,5.88645986]
[1760366146280,0.09565548,195.07,195.06,16.76293507]
[1760366146665,0.09826122,195.08,195.07,10.87647521]
[1760366146986,0.09320034,195.09,195.07,5.12615058]
[1760366147169,0.09320034,195.09,195.08,26.68645986]
[1760366147363,0.09320034,195.09,195.08,20.8]
[1760366147562,0.09320034,195.09,195.08,26.68645986]
[1760366147763,0.09320034,195.09,195.08,20.8]
[1760366147983,0.09320034,195.09,195.07,5.88645986]
[1760366148195,0.09320034,195.09,195.01,5.62783961]
[1760366148196,0.81320034,195.09,195.01,5.62783961]
[1760366148372,0.81320034,195.09,195.03,5.88645986]
[1760366148373,11.82551514,195.09,195.03,5.88645986]
[1760366148566,0.09320034,195.09,195.06,5.88645986]
[1760366148784,0.09320034,195.09,195.01,6.14068454]
[1760366148785,0.09320034,195.09,195.05,5.88645986]
[1760366148983,0.09320034,195.09,195.06,5.88645986]
[1760366149490,0.81320034,195.09,195.01,21.3]
[1760366149665,0.72,195.08,195.03,5.88645986]
[1760366149867,5.88645986,195.05,195.01,0.5]
[1760366150175,6.60645986,195.04,195.01,0.5]
[1760366150379,18.0338408,195.09,195.01,5.88645986]
[1760366150380,5.88645986,195.07,195.01,5.88645986]
[1760366150689,0.72,195.06,195.01,5.88645986]
[1760366150884,0.72,195.05,195.01,5.88645986]
[1760366151391,5.21924241,195.09,195.01,5.88645986]
[1760366151392,0.81320034,195.09,195.03,5.88645986]
[1760366151573,0.81320034,195.09,195.01,5.12770031]
[1760366151574,0.09320034,195.09,195.01,14.88770031]
[1760366151775,0.09320034,195.09,195.08,5.88645986]
[1760366152078,0.09320034,195.09,195.07,5.88645986]
[1760366152397,0.09320034,195.09,195.0,16.76293507]
[1760366152398,0.72,195.08,195.0,10.87647521]
[1760366152574,0.72,195.08,195.03,5.88645986]
[1760366152776,0.72,195.08,195.02,20.8]
[1760366153094,0.72,195.07,195.02,5.88645986]
[1760366153392,0.72,195.06,195.01,26.68645986]
[1760366153785,5.88645986,195.08,195.02,5.88645986]
[1760366154474,5.88645986,195.06,195.0,26.68645986]
[1760366154680,5.88645986,195.08,195.01,5.88645986]
[1760366155188,0.81320034,195.09,195.03,5.88645986]
[1760366155383,11.82551112,195.09,195.03,5.88645986]
[1760366155763,0.81320034,195.09,195.04,5.88645986]
[1760366155987,0.81320034,195.09,195.04,0.5]
[1760366155988,0.72,195.08,195.04,0.5]
[1760366156194,5.9796602,195.09,195.04,0.5]
[1760366156195,6.60645986,195.07,195.04,0.5]
[1760366156494,0.72,195.08,195.04,0.5]
[1760366156791,0.72,195.07,195.04,0.5]
[1760366157095,5.21904758,195.09,195.04,6.38645986]
[1760366157394,0.72,195.08,195.04,0.5]
[1760366157698,0.09320034,195.09,195.07,5.88645986]
[1760366157900,0.81320034,195.09,195.05,5.88645986]
[1760366158269,0.72,195.08,195.04,0.5]
[1760366158475,0.72,195.07,195.04,0.5]
[1760366159592,0.72,195.06,195.04,0.5]
[1760366159777,6.60645986,195.05,195.0,9.74]
[1760366159981,0.72,195.04,194.98,5.88645986]
[1760366160292,0.72,195.04,194.97,5.12896702]
[1760366160293,0.11279939,195.02,194.99,20.8]
[1760366160480,0.11279939,195.02,194.97,10.87647521]
[1760366160481,0.11279939,195.02,195.0,20.61647521]
[1760366160678,0.1095108,195.06,195.04,31.67647521]
[1760366160902,0.72,195.19,195.07,31.67647521]
[1760366161078,0.72,195.19,195.07,41.41647521]
[1760366161282,5.88645986,195.16,195.07,5.88645986]
[1760366161480,0.72,195.13,195.07,26.68645986]
[1760366161688,0.72,195.13,195.07,31.81282475]
[1760366162393,0.72,195.21,195.08,10.87647521]
[1760366162591,0.72,195.18,195.08,26.50293507]
[1760366162787,5.88645986,195.18,195.08,20.8]
[1760366162982,0.72,195.14,195.08,26.68645986]
[1760366163191,2.67490942,195.15,195.08,37.56293507]
[1760366163374,2.67490942,195.15,195.09,15.62645986]
[1760366163701,0.72,195.22,195.13,5.1247886]
[1760366163912,0.72,195.22,195.13,9.74]
[1760366163913,2.67460791,195.18,195.13,9.74]
[1760366164215,0.72,195.17,195.13,5.88645986]
[1760366164382,0.72,195.17,195.05,10.87647521]
[1760366164696,2.67495541,195.17,195.14,5.88645986]
[1760366164882,3.39495541,195.17,195.14,5.88645986]
[1760366165072,0.72,195.16,195.08,20.8]
[1760366165277,0.72,195.16,195.11,5.88645986]
[1760366165494,0.72,195.15,195.11,5.88645986]
[1760366165696,0.72,195.14,194.96,19.99999999]
[1760366165904,6.60645986,195.13,195.07,5.88645986]
[1760366166082,0.72,195.13,195.09,6.38645986]
[1760366166289,0.72,195.13,195.11,5.88645986]
[1760366166496,0.72,195.12,195.09,0.5]
[1760366166694,5.88645986,195.15,195.09,0.5]
[1760366166873,7.79870093,195.17,195.09,6.38645986]
[1760366166874,2.67495541,195.17,195.09,6.38645986]
[1760366167202,2.67495541,195.17,195.15,5.88645986]
[1760366167408,2.67495541,195.17,195.16,5.88645986]
[1760366167576,0.72,195.23,195.17,17.93308396]
[1760366167779,0.72,195.23,195.16,26.68645986]
[1760366167780,6.60645986,195.22,195.16,20.8]
[1760366168001,6.60645986,195.21,195.01,19.99999999]
[1760366168301,5.88645986,195.19,195.13,20.8]
[1760366168475,2.67404484,195.23,195.18,5.88645986]
[1760366168679,0.72,195.22,195.18,5.88645986]
[1760366168882,0.72,195.22,195.14,9.74]
[1760366168883,3.39404484,195.23,195.2,5.88645986]
[1760366169076,2.67404484,195.23,195.22,5.88645986]
[1760366169593,0.72,195.27,195.22,5.88645986]
[1760366169807,3.39350315,195.26,195.17,20.8]
[1760366169992,0.72,195.25,195.18,20.8]
[1760366170178,5.88645986,195.22,195.16,20.8]
[1760366170506,2.67350315,195.26,195.21,5.88645986]
[1760366170695,0.72,195.25,195.16,20.8]
[1760366170878,6.60645986,195.25,195.18,5.88645986]
[1760366171082,6.60645986,195.25,195.19,5.88645986]
[1760366171399,5.88645986,195.24,195.18,5.88645986]
[1760366171604,6.60645986,195.24,195.18,5.88645986]
[1760366171920,5.88645986,195.21,195.16,5.12397265]
[1760366172210,0.72,195.24,195.17,5.88645986]
[1760366172503,0.72,195.23,195.18,5.88645986]
[1760366172706,5.88645986,195.21,195.1,10.87647521]
[1760366172912,6.58645986,195.2,195.09,15.47598768]
[1760366173079,5.88645986,195.19,195.13,5.88645986]
[1760366173277,0.7,195.2,195.15,5.88645986]
[1760366173478,0.7,195.2,195.16,5.88645986]
[1760366173702,0.7,195.2,195.15,5.88645986]
[1760366174019,0.7,195.2,195.18,5.88645986]
[1760366174311,0.7,195.2,195.17,5.88645986]
[1760366174510,2.67350315,195.26,195.19,5.88645986]
[1760366174719,2.67350315,195.26,195.2,5.88645986]
[1760366174720,3.37350315,195.26,195.2,5.88645986]
[1760366175006,2.67350315,195.26,195.24,5.88645986]
[1760366175387,0.7,195.33,195.25,8.86040548]
[1760366175585,0.7,195.33,195.22,30.52]
[1760366175586,14.67998261,195.33,195.24,9.72]
[1760366175786,2.67284908,195.31,195.27,8.86040548]
[1760366175985,0.7,195.3,195.23,5.12190384]
[1760366176188,0.7,195.3,195.27,8.86040548]
[1760366176403,2.67284908,195.31,195.28,8.86040548]
[1760366176602,2.67284908,195.31,195.3,8.86040548]
[1760366177103,0.7,195.34,195.3,8.86040548]
[1760366177299,0.7,195.34,195.25,20.8]
[1760366177300,0.2,195.36,195.33,8.86040548]
[1760366177499,2.87231787,195.36,195.35,8.86040548]
[1760366177701,2.87231787,195.36,195.32,8.86040548]
[1760366177702,0.7,195.35,195.32,8.86040548]
[1760366177932,0.7,195.35,195.29,25.9205334]
[1760366178091,2.87231787,195.36,195.34,8.86040548]
[1760366178290,0.2,195.36,195.35,8.86040548]
[1760366178708,0.2,195.36,195.35,18.58040548]
[1760366178907,0.2,195.36,195.35,8.86040548]
[1760366179105,0.2,195.36,195.35,18.58040548]
[1760366179308,0.2,195.36,195.34,29.66040548]
[1760366179610,0.2,195.36,195.29,17.92200812]
[1760366179611,0.7,195.35,195.29,8.86040548]
[1760366179919,9.56040548,195.35,195.3,0.5]
[1760366180123,9.56040548,195.34,195.27,20.8]
[1760366180287,0.09986056,195.3,195.0,25.03487032]
[1760366180483,0.79986056,195.3,195.24,8.86040548]
[1760366180706,0.79986056,195.3,195.25,8.86040548]
[1760366181084,0.7,195.29,195.25,8.86040548]
[1760366181300,0.7,195.28,195.25,8.86040548]
[1760366181487,0.7,195.27,195.17,10.87647521]
[1760366181808,8.86040548,195.25,195.19,8.86040548]
[1760366181988,9.56040548,195.26,195.2,8.86040548]
[1760366182193,9.56040548,195.26,195.19,20.8]
[1760366182194,0.7,195.26,195.19,29.66040548]
[1760366182394,0.7,195.26,195.2,8.86040548]
[1760366182693,0.7,195.29,195.24,8.86040548]
[1760366182893,0.7,195.28,195.24,8.86040548]
[1760366183103,0.09986056,195.3,195.25,8.86040548]
[1760366183305,0.09986056,195.3,195.23,20.8]
[1760366183511,0.7,195.29,195.23,20.8]
[1760366183711,8.86040548,195.27,195.19,5.12296881]
[1760366183918,5.22021087,195.3,195.1,10.87647521]
[1760366183919,8.86040548,195.24,195.1,10.87647521]
[1760366184128,9.56040548,195.24,195.18,8.86040548]
[1760366184490,8.86040548,195.22,195.16,8.86040548]
[1760366184687,0.7,195.23,195.11,10.87647521]
[1760366184925,8.86040548,195.19,195.1,17.93951818]
[1760366185212,84.15954931,195.3,195.1,17.93951818]
[1760366185213,8.86040548,195.2,195.13,8.86040548]
[1760366185411,5.12222742,195.23,195.14,8.86040548]
[1760366185596,8.86040548,195.21,195.15,8.86040548]
[1760366185790,8.86040548,195.18,195.1,5.12557662]
[1760366185992,8.86040548,195.16,195.1,8.86040548]
[1760366186217,0.7,195.15,195.1,8.86040548]
[1760366186613,8.86040548,195.16,195.1,8.86040548]
[1760366186802,9.56040548,195.14,195.07,8.86040548]
[1760366187006,8.86040548,195.13,195.06,8.86040548]
[1760366187303,0.7,195.12,195.06,8.86040548]
[1760366187505,0.7,195.17,195.09,8.86040548]
[1760366187715,8.86040548,195.13,195.04,5.1271534]
[1760366187898,8.86040548,195.1,195.02,5.12757896]
[1760366188097,9.56040548,195.1,195.04,8.86040548]
[1760366188294,0.7,195.1,195.05,8.86040548]
[1760366188497,10.87647521,195.19,195.07,8.86040548]
[1760366188729,8.86040548,195.13,195.07,8.86040548]
[1760366188921,9.56040548,195.12,195.05,8.86040548]
[1760366189097,8.86040548,195.11,195.05,8.86040548]
[1760366189298,9.56040548,195.12,195.05,8.86040548]
[1760366189505,9.56040548,195.12,195.06,5.1266277]
[1760366189807,9.56040548,195.12,195.06,13.98703318]
[1760366190013,9.56040548,195.17,195.11,8.86040548]
[1760366190524,8.86040548,195.16,195.09,8.86040548]
[1760366191120,8.86040548,195.12,195.07,20.8]
[1760366191426,0.7,195.14,195.08,8.86040548]
[1760366191632,0.7,195.17,195.1,8.86040548]
[1760366191809,9.56040548,195.17,195.1,8.86040548]
[1760366192118,0.10955488,195.33,195.16,8.86040548]
[1760366192119,0.7,195.27,195.16,8.86040548]
[1760366192311,8.86040548,195.25,195.08,43.57166935]
[1760366192515,8.86040548,195.22,195.16,8.86040548]
[1760366192832,9.56040548,195.21,195.15,8.86040548]
[1760366193003,0.7,195.21,195.15,8.86040548]
[1760366193317,0.7,195.21,195.18,8.86040548]
[1760366193517,0.7,195.21,195.17,8.86040548]
[1760366194031,0.7,195.29,195.2,8.86040548]
[1760366194324,8.86040548,195.26,195.2,8.86040548]
[1760366194617,0.7,195.25,195.2,8.86040548]
[1760366194921,0.7,195.25,195.15,20.8]
[1760366194922,8.86040548,195.21,195.03,19.99999999]
[1760366195132,8.86040548,195.21,194.96,25.64540929]
[1760366195133,8.86040548,195.17,195.02,13.98808469]
[1760366195301,9.56040548,195.17,195.11,8.86040548]
[1760366195502,9.56040548,195.2,195.13,13.98518887]
[1760366196223,14.68343386,195.2,195.13,13.98518887]
[1760366196518,8.86040548,195.19,195.13,13.98518887]
[1760366196700,9.56040548,195.2,195.14,8.86040548]
[1760366196904,0.7,195.25,195.18,8.86040548]
[1760366197103,8.86040548,195.23,195.17,8.86040548]
[1760366197335,0.7,195.22,195.17,8.86040548]
[1760366197505,0.7,195.21,195.17,8.86040548]
[1760366197704,0.7,195.21,195.18,9.72]
[1760366197955,0.7,195.21,195.17,8.86040548]
[1760366198112,9.56040548,195.2,195.13,20.8]
[1760366198431,8.86040548,195.23,195.17,8.86040548]
[1760366198627,0.7,195.22,195.17,8.86040548]
[1760366198806,0.7,195.24,195.18,8.86040548]
[1760366199122,9.56040548,195.23,195.19,9.72]
[1760366199325,0.7,195.22,195.17,8.86040548]
[1760366199530,0.7,195.22,195.18,8.86040548]
[1760366199907,12.80267325,195.28,195.2,8.86040548]
[1760366199908,0.7,195.28,195.2,8.86040548]
[1760366200204,0.11214977,195.22,195.2,8.86040548]
[1760366200707,0.11214977,195.22,195.19,8.86040548]
[1760366200903,0.7,195.21,195.14,12.81078541]
[1760366201120,0.7,195.21,195.17,8.86040548]
[1760366201325,0.7,195.21,195.18,9.72]
[1760366201512,0.11214977,195.22,195.17,8.86040548]
[1760366201709,0.81214977,195.22,195.19,8.86040548]
[1760366202126,0.81214977,195.22,195.2,9.72]
[1760366202425,0.11214977,195.22,195.21,9.72]
[1760366202727,0.11214977,195.22,195.21,18.58040548]
[1760366202923,0.11214977,195.22,195.21,9.72]
[1760366203125,0.11214977,195.22,195.2,8.86040548]
[1760366203716,0.11214977,195.22,195.21,13.98309386]
[1760366203905,0.11214977,195.22,195.21,23.70309386]
[1760366204331,0.09995787,195.23,195.22,31.67647521]
[1760366204631,0.11221403,195.25,195.24,20.8]
[1760366204807,0.11221403,195.25,195.24,8.86040548]
[1760366205317,0.11221403,195.25,195.24,18.58040548]
[1760366205512,0.11221403,195.25,195.24,8.86040548]
[1760366205727,0.11221403,195.25,195.24,18.58040548]
[1760366205926,0.82221403,195.25,195.2,20.8]
[1760366206121,0.71,195.24,195.21,9.72]
[1760366206319,0.11221403,195.25,195.2,8.86040548]